Cogmind - Beta 10.2 @@@ ROGUE MODE // 2021.05.10 @ 16:01:27 Player: cavemonk Result: Self-destructed Performance ------------- Evolutions (0) 0 Regions Visited (4) 800 Robots Destroyed (18) 90 Value Destroyed (425) 425 Prototype IDs (23) 460 Alien Tech Used (0) 0 Bonus (300) 300 TOTAL SCORE: 2075 Bonus ------- Aligned with FarCom 300 Cogmind --------- Core Integrity 117/250 Matter 300/300 Energy 250/250 System Corruption 0% Temperature Cool (0) Movement Treading (200) Ox2 Location -9/Mines Parts ------- > --- POWER (1) -------- Ion Engine > --- PROPULSION (2) --- Light Treads Light Treads > --- UTILITY (2) ------ Humpback > --- WEAPON (2) ------- Light Cannon Light Cannon > --- INVENTORY (24) --- Ion Engine Ion Engine Light Treads Medium Storage Unit Large Storage Unit Large Storage Unit Large Storage Unit Humpback Humpback Large Battery (300) High-capacity Matter Pod (200) Experimental Sensor Array Light Armor Plating Light Armor Plating Light Armor Plating EM Pulse Gun Assault Rifle Assault Rifle Assault Rifle Light Cannon Mining Laser Peak State ------------ > --- POWER ------------ Ion Engine > --- PROPULSION ------- Light Treads Light Treads > --- UTILITY ---------- Large Storage Unit Large Storage Unit > --- WEAPON ----------- EM Pulse Gun EM Pulse Gun > --- INVENTORY -------- Ion Engine Ion Engine Light Treads Large Storage Unit Large Matter Pod Experimental Sensor Array Light Armor Plating Light Armor Plating Light Armor Plating Assault Rifle Assault Rifle Assault Rifle Light Cannon Light Cannon Light Cannon Mining Laser [Rating: 9] Favorites ----------- Power Ion Engine Engine Ion Engine Propulsion Light Treads Treads Light Treads Leg Aluminum Leg Wheel Wheel Utility Large Storage Unit Storage Large Storage Unit Weapon EM Pulse Gun Energy Gun EM Pulse Gun Ballistic Gun Assault Rifle Ballistic Cannon Light Cannon Special Weapon Mining Laser Build | -11 -10 -10 -10 -9 ------- Run | Scr Mat Min Exi Min Slots Evolved . | . . . . . Power . | . . . . . Propulsion . | . . . . . Utility . | . . . . . Weapon . | . . . . . Parts Attached 41 | 3 35 1 2 . Power 3 | . 3 . . . Engine 3 | . 3 . . . Core . | . . . . . Reactor . | . . . . . Propulsion 16 | 2 14 . . . Treads 9 | 1 8 . . . Leg . | . . . . . Wheel 7 | 1 6 . . . Hover . | . . . . . Flight . | . . . . . Utility 4 | 1 2 . 1 . Device . | . . . . . Storage 4 | 1 2 . 1 . Processor . | . . . . . Hackware . | . . . . . Protection . | . . . . . Artifact . | . . . . . Weapon 18 | . 16 1 1 . Energy Gun 11 | . 11 . . . Energy Cannon . | . . . . . Ballistic Gun . | . . . . . Ballistic Cannon 2 | . . 1 1 . Launcher . | . . . . . Special Weapon 5 | . 5 . . . Impact Weapon . | . . . . . Slashing Weapon . | . . . . . Piercing Weapon . | . . . . . Special Melee Weapon . | . . . . . Unidentified Prototypes . | . . . . . Parts Lost 2 | . 1 1 . . Power . | . . . . . Propulsion . | . . . . . Utility . | . . . . . Weapon 2 | . 1 1 . . Highest Loss Streak 1 | . 1 1 . . Average Slot Usage (%) 98 | . 99 100 93 85 Engine 14 | . 14 14 14 14 Treads 24 | . 22 28 28 28 Wheel 3 | . 5 . . . Storage 26 | . 28 28 22 14 Energy Gun 19 | . 25 24 4 . Ballistic Cannon 6 | . . 3 23 28 Special Weapon 1 | . 1 . . . Naked Turns . | . . . . . Heaviest Build 91 | 16 41 42 91 91 Greatest Support 40 | 20 40 40 40 40 Greatest Overweight (x) 4 | 1 4 1 2 2 Average Overweight (x) 1 | . 1 1 1 2 Largest Inventory Capacity 24 | 8 16 16 24 24 Average Capacity 15 | 7 14 16 19 24 Most Carried 23 | 7 16 16 23 23 Average Carried 14 | 5 14 15 16 23 Final Capacity 24 | 8 16 16 24 24 Final Carried 23 | 6 16 15 23 23 Class Distribution -------------------- 89% | Mutant 10% | Hauler-Mutant Dominant Class ---------------- Mutant | -10/Materials Mutant | -10/Mines Mutant | -10/Exiles Mutant | -9/Mines Resources | -11 -10 -10 -10 -9 ----------- Run | Scr Mat Min Exi Min Matter Collected 892 | 255 571 26 40 . Remotely . | . . . . . Salvage Created 706 | 62 546 98 . . Parts 45 | 5 34 6 . . Haulers Intercepted 2 | . 2 . . . Recyclers Shooed . | . . . . . Parts Field Recycled . | . . . . . Retrieved Matter . | . . . . . Parts Self-Destructed . | . . . . . Prevented . | . . . . . Kills | -11 -10 -10 -10 -9 ------- Run | Scr Mat Min Exi Min Combat Hostiles Destroyed 11 | . 8 3 . . Guns 9 | . 7 2 . . Cannons 1 | . . 1 . . AOE 1 | . 1 . . . Classes Destroyed 8 | 2 4 2 . . Worker 1 | . . 1 . . Tunneler 1 | 1 . . . . Hauler 2 | . 2 . . . Recycler 1 | 1 . . . . Operator 1 | . 1 . . . Watcher 1 | . 1 . . . Swarmer 2 | . . 2 . . Grunt 9 | . 8 1 . . Best Kill Streak 3 | 2 3 2 . . Combat Bots Only 2 | . 2 2 . . Max Kills in Single Turn 1 | 1 1 1 . . Gunslinging . | . . . . . Exploded 1 | . 1 . . . Melee . | . . . . . Uniques/NPCs Destroyed . | . . . . . Combat | -11 -10 -10 -10 -9 -------- Run | Scr Mat Min Exi Min Damage Taken 712 | . 591 121 . . Core 133 | . 116 17 . . Absorbed by Shields . | . . . . . Core Remaining (%) 100 | 100 . . . . Volleys Fired 66 | 8 51 7 . . Largest 2 | 2 2 2 . . Hottest 100 | 40 100 80 . . Shots Fired 118 | 16 88 14 . . Gun 100 | 16 74 10 . . Cannon 4 | . . 4 . . Launcher . | . . . . . Special 14 | . 14 . . . Kinetic 20 | 16 . 4 . . Thermal 14 | . 14 . . . Explosive . | . . . . . Electromagnetic 84 | . 74 10 . . Robot Hit Streak 19 | 10 19 7 . . Robot Miss Streak 3 | 2 3 2 . . Penetration Max . | . . . . . Secondary Targets 1 | . 1 . . . Max Gunslinging Chain 1 | . 1 . . . Shots Hit Robots 64 | 11 43 10 . . Core Hits 28 | 3 20 5 . . Critical Hits . | . . . . . Critical Kills . | . . . . . Critical Parts Destroyed . | . . . . . Melee Attacks . | . . . . . Impact . | . . . . . Slashing . | . . . . . Piercing . | . . . . . Sneak Attacks . | . . . . . Combat Hostiles . | . . . . . Follow-up Attacks . | . . . . . Damage Inflicted 926 | 119 625 182 . . Guns 817 | 119 593 105 . . Cannons 77 | . . 77 . . Explosions 30 | . 30 . . . Melee . | . . . . . Ramming 2 | . 2 . . . Kinetic 196 | 119 . 77 . . Thermal 30 | . 30 . . . Explosive . | . . . . . Electromagnetic 698 | . 593 105 . . Impact . | . . . . . Slashing . | . . . . . Piercing . | . . . . . Highest Corruption . | . . . . . Average Corruption . | . . . . . Corruption Purged . | . . . . . Overload Shots . | . . . . . Overflow Damage 10 | . . 10 . . Projectiles 10 | . . 10 . . Explosions . | . . . . . Melee . | . . . . . Knockbacks 2 | . . 2 . . Impact . | . . . . . Kinetic 2 | . . 2 . . Secondary . | . . . . . Self-Inflicted Damage . | . . . . . Shots . | . . . . . Rammed 1 | . 1 . . . Targets Rammed 1 | . 1 . . . Kicked . | . . . . . Crushed . | . . . . . Highest Temperature 330 | . 330 100 . . Average Temperature 70 | . 75 39 . . Received Heat Transfer 375 | . 327 48 . . Siege Activations . | . . . . . Robots Corrupted . | . . . . . Combat Hostiles . | . . . . . Parts Fried 3 | . 3 . . . Impact Corruptions . | . . . . . Robots Melted . | . . . . . Combat Hostiles . | . . . . . Parts Melted . | . . . . . Heat Transferred 50 | . 50 . . . Parts Sabotaged . | . . . . . Parts Stolen . | . . . . . Parts Stripped . | . . . . . Power Chain Reactions 1 | . 1 . . . Missiles Intercepted . | . . . . . Alert | -11 -10 -10 -10 -9 ------- Run | Scr Mat Min Exi Min Peak Influence 116 | 10 116 95 . . Initial 6 | . 6 . . . Average 52 | 6 56 50 . . Maximum Alert Level . | . . . . . Low Security (%) 100 | 100 100 100 . 100 Level 1 . | . . . . . Level 2 . | . . . . . Level 3 . | . . . . . Level 4 . | . . . . . Level 5 . | . . . . . High Security . | . . . . . Max Security . | . . . . . Squads Dispatched . | . . . . . Investigation . | . . . . . Extermination . | . . . . . Reinforcement . | . . . . . Assault . | . . . . . Garrison . | . . . . . Intercept . | . . . . . Construction Impeded . | . . . . . Haulers Reinforced . | . . . . . Stealth | -11 -10 -10 -10 -9 --------- Run | Scr Mat Min Exi Min Distress Signals . | . . . . . Communications Jammed . | . . . . . Distress Signals . | . . . . . Times Spotted 24 | . 19 5 . . Peak Tracking Total 3 | . 3 3 . . Tactical Retreats 2 | . . 2 . . Traps | -11 -10 -10 -10 -9 ------- Run | Scr Mat Min Exi Min Traps Triggered . | . . . . . Indirectly . | . . . . . Trap Hack Attempts . | . . . . . Triggered . | . . . . . Disarmed . | . . . . . Reprogrammed . | . . . . . Reused . | . . . . . Traps Extracted . | . . . . . Installed . | . . . . . Triggered . | . . . . . Machines | -11 -10 -10 -10 -9 ---------- Run | Scr Mat Min Exi Min Machines Disabled 1 | . 1 . . . Max in Single Turn 1 | . 1 . . . Machines Sabotaged . | . . . . . Garrisons Compromised . | . . . . . Overloaded Fab Kills . | . . . . . Fab Network Shutdowns . | . . . . . Hacking | -11 -10 -10 -10 -9 --------- Run | Scr Mat Min Exi Min Machines Accessed 11 | . 10 . 1 . Terminals 8 | . 8 . . . Fabricators . | . . . . . Repair Stations 1 | . 1 . . . Recycling Units 1 | . 1 . . . Scanalyzers . | . . . . . Garrison Access . | . . . . . Total Hacks 31 | . 30 . 1 . Successful 18 | . 17 . 1 . Failed 12 | . 12 . . . Catastrophic 5 | . 5 . . . Database Lockouts 1 | . 1 . . . Manual 18 | . 17 . 1 . Terminals 21 | . 21 . . . Fabricators . | . . . . . Repair Stations 6 | . 6 . . . Recycling Units 3 | . 3 . . . Scanalyzers . | . . . . . Garrison Access . | . . . . . Terminal Hacks 8 | . 7 . 1 . Robot Analysis 1 | . 1 . . . Terminal Index 1 | . 1 . . . Locate Traps 1 | . 1 . . . Patrol Status 1 | . 1 . . . Zone Layout 3 | . 3 . . . EX-Prototype ID Bank 1 | . . . 1 . Fabricator Hacks . | . . . . . Repair Station Hacks 5 | . 5 . . . Scan Component 3 | . 3 . . . Repair 2 | . 2 . . . Recycling Unit Hacks 2 | . 2 . . . Process 1 | . 1 . . . Retrieve Matter 1 | . 1 . . . Scanalyzer . | . . . . . Garrison Access Hacks . | . . . . . Unauthorized Hacks 3 | . 3 . . . Terminals 3 | . 3 . . . Track 3 | . 3 . . . Fabricators . | . . . . . Repair Stations . | . . . . . Recycling Units . | . . . . . Scanalyzers . | . . . . . Garrison Access . | . . . . . Data Cores Recovered 1 | . 1 . . . Used . | . . . . . Hacking Detections 10 | . 10 . . . Full Trace Events . | . . . . . Feedback Events . | . . . . . Feedback Blocked . | . . . . . Robot Schematics Acquired . | . . . . . Robots Built . | . . . . . Matter . | . . . . . Time . | . . . . . Total Robot Build Rating . | . . . . . Part Schematics Acquired . | . . . . . Parts Built . | . . . . . Matter . | . . . . . Time . | . . . . . Total Part Build Rating . | . . . . . Parts Repaired 2 | . 2 . . . Time 52 | . 52 . . . Parts Recycled . | . . . . . Recycled Matter 241 | . 241 . . . Retrieved Matter 369 | . 369 . . . Retrieved Components . | . . . . . Parts Scanalyzed . | . . . . . Part Schematics Acquired . | . . . . . Parts Damaged . | . . . . . Bothacking | -11 -10 -10 -10 -9 ------------ Run | Scr Mat Min Exi Min Used RIF Installer . | . . . . . Robots Hacked . | . . . . . Non-combat . | . . . . . Combat . | . . . . . Robot Hacks Applied . | . . . . . Relay Couplers Released . | . . . . . Robots Rewired . | . . . . . Allies Hacked . | . . . . . Hacks Repelled . | . . . . . Allies | -11 -10 -10 -10 -9 -------- Run | Scr Mat Min Exi Min Total Allies . | . . . . . Largest Group . | . . . . . Highest-Rated Group . | . . . . . Highest-Rated Ally . | . . . . . Total Orders . | . . . . . Ally Attacks . | . . . . . Total Damage . | . . . . . Kills . | . . . . . Allies Corrupted . | . . . . . Allies Melted . | . . . . . Intel | -11 -10 -10 -10 -9 ------- Run | Scr Mat Min Exi Min Robot Analysis Total 1 | . 1 . . . Derelict Logs Recovered 1 | . . 1 . . Drone Launches . | . . . . . Drone Recoveries . | . . . . . Exploration | -11 -10 -10 -10 -9 ------------- Run | Scr Mat Min Exi Min Turns Passed 2689 | 112 1621 312 638 6 Spaces Moved 1346 | 67 793 155 328 3 Core . | . . . . . Treads 895 | . 409 155 328 3 Legs 39 | 39 . . . . Wheels 412 | 28 384 . . . Hover . | . . . . . Flight . | . . . . . Fastest Speed 90 | 90 90 180 160 200 Average Speed 157 | 107 144 180 187 200 Slowest Speed 200 | 120 180 180 200 200 Overloaded Moves . | . . . . . Propulsion Burnouts . | . . . . . Robots Hopped . | . . . . . Cave-ins Triggered . | . . . . . Exploration Rate (%) 45 | 3 97 51 70 4 Regions Visited 4 Branch Regions 3 Pre-discovered Areas 1 | . . 1 . . Known Exits Taken . | . . . . . Unknown Exits Taken 4 | 1 1 1 1 . Scrap Searched 1 | . . 1 . . Spaces Dug 13 | . 13 . . . Terrain Destroyed 17 | . 17 . . . Melee . | . . . . . Projectile 13 | . 13 . . . AOE 4 | . 4 . . . Terrain Rammed . | . . . . . Walls Destroyed . | . . . . . Machines Disabled . | . . . . . Actions | -11 -10 -10 -10 -9 --------- Run | Scr Mat Min Exi Min Total 1772 | 93 1147 175 354 3 Wait 244 | 10 223 11 . . Move 1342 | 66 792 154 327 3 Hop . | . . . . . Pick Up 47 | 2 24 1 20 . Fast Attach 5 | 1 3 . 1 . Attach 7 | 2 3 1 1 . Detach 3 | 2 1 . . . Swap 29 | . 29 . . . Drop 28 | 2 20 1 5 . Fire 66 | 8 51 7 . . Melee . | . . . . . Ram . | . . . . . Kick . | . . . . . Crush 1 | . 1 . . . Escape Stasis . | . . . . . Rewire . | . . . . . Trap . | . . . . . Miscellaneous . | . . . . . Route ------- -11/Scrapyard -10/Materials (discovered 5 exits: [*Mat x3] / [*Min x2]) -10/Mines (discovered 2 exits: [*Mat] / *Exi) -10/Exiles -9/Mines History --------- Turn | Location | Event 1 | -11/Scrapyard | Discovered new exit (range 3) 113 | -11/Scrapyard | Entered Materials 248 | -10/Materials | Discovered new exit (range 15) 316 | -10/Materials | Build established: Mutant 699 | -10/Materials | Discovered new exit (range 16) 748 | -10/Materials | Repaired EM Pulse Gun 775 | -10/Materials | Repaired EM Pulse Gun 791 | -10/Materials | Discovered new exit (range 9) 924 | -10/Materials | Discovered new exit (range 16) 1161 | -10/Materials | Discovered new exit (range 12) 1528 | -10/Materials | Central database locked down 1734 | -10/Materials | Entered Mines 1902 | -10/Mines | Found a damaged Exp. Sensor Array with a note attached 1907 | -10/Mines | Found Prototype Device 1917 | -10/Mines | Discovered new exit (range 8) 1949 | -10/Mines | Learned location of Zion (-7) 1976 | -10/Mines | Core integrity fell below 50% 2037 | -10/Mines | Deemed a non-threat by the Exiles lab entrance 2039 | -10/Mines | Discovered new exit (range 5) 2046 | -10/Mines | Entered Exiles 2091 | -10/Exiles | Met 8R-AWN 2118 | -10/Exiles | Met EX-HEX 2171 | -10/Exiles | Met EX-BIN 2196 | -10/Exiles | Aligned with FarCom system 2198 | -10/Exiles | Given EX-Vault access code 2241 | -10/Exiles | Opened EX-Vault 2281 | -10/Exiles | Warned to stay clear of 0b10 Research branches 2332 | -10/Exiles | Met EX-DEC 2666 | -10/Exiles | Discovered new exit (range 10) 2684 | -10/Exiles | Entered Mines 2688 | -9/Mines | Met a Derelict bent on vengeance 2690 | -9/Mines | Self-destructed Last Messages --------------- 02461_ Acquired Sml. Storage Unit. 02462_ Dropped Sml. Storage Unit. 02468_ Acquired Lgt. Treads. 02471_ Acquired Lgt. Armor Plating. 02474_ Acquired Assault Rifle. 02477_ Acquired Ion Engine. 02480_ Acquired Lrg. Storage Unit. 02483_ Acquired Assault Rifle. 02488_ Acquired EM Pulse Gun. 02491_ Acquired Lrg. Storage Unit. 02497_ Acquired Ion Engine. 02500_ Acquired Assault Rifle. 02503_ Acquired Lgt. Cannon. 02626_ Extracted 4 energy. 02628_ Acquired Lrg. Battery. 02631_ Acquired Med. Storage Unit. 02666_ EXIT=FOUND LOCATION=UNKNOWN GOAL=ESCAPE 02684_ Receiving FarCom transmissions... Map ----- +----------------------------------------------------+ | ??????????????????????????????????????????? | | ??????????????????????????????????????????? | | ??????????????????????????????????????????? | | ??????????????????????????????????????????? | | ??????????????????????????????????????????? | | ??????????????????????????????????????????? | | ??????????????????????????????????????????? | | ??????????????????????????????????????????? | | ??????????????????????????????????????????? | | ??????????????????????????????????????????? | | ??????????????????????????????????????????? | | ??????????????????????????????????????????? | | ??????????????????????????????????????????? | | ??????????????????????????????????????????? | | ??????????????????????????????????????????? | | ??????????????????????????????????????????? | | ??????????????????????????????????????????? | | ??????????????????????????????????????????? | | ??????????????????????????????????????????? | | ??????????????????????????????????????????? | | ??????????????????????????????????????????? | | ?????????????# ???????????????????????????? | | ?????????????# ###########???????????????? | | ?????????????# ##??????????????? | | ?????????????# ##?????????????? | | ???????????????????# @ ## #??????? | | ???????????????????## #???????? | | ????????????????????# ## ##???????? | | ????????????????????# ##?# ####????????? | | ????????????????????# #???###???????????? | | ????????????????????# ##?????????????????? | | ????????????????????####??????????????????? | | ??????????????????????????????????????????? | | ??????????????????????????????????????????? | | ??????????????????????????????????????????? | | ??????????????????????????????????????????? | | ??????????????????????????????????????????? | | ??????????????????????????????????????????? | | ??????????????????????????????????????????? | | ??????????????????????????????????????????? | | ??????????????????????????????????????????? | | ??????????????????????????????????????????? | | ??????????????????????????????????????????? | | ??????????????????????????????????????????? | | ??????????????????????????????????????????? | | ??????????????????????????????????????????? | | ??????????????????????????????????????????? | | ??????????????????????????????????????????? | | ??????????????????????????????????????????? | | ??????????????????????????????????????????? | +----------------------------------------------------+ Best States ------------- Heat Dissipation 25 Energy Generation 10 Energy Capacity 250 Matter Stores 300 Matter Capacity 300 Sight Range 16 Terrain Scan Density 10 Evasion (%) 42 Recoil Reduction 2 Item Schematics ----------------- None Robot Schematics ------------------ None Fabricated ------------ Nothing Alien Tech Used ----------------- None Achievements -------------- None Challenges ------------ None Game ------ Seed FocalForceMagmablaster Manual? 0 Play Time 00:21:10 Cumulative 219.8 hours Start 2021.05.10 @ 15:40:00 End 2021.05.10 @ 16:01:27 Sessions 1 Manual Loads 0 Difficulty Rogue Special Mode None Game No. 140 Rogue 140 Adventurer 0 Explorer 0 Win Type - Total 4 Types 4/0/0/0/0/0/0/0/0 Lore% 47 Gallery% 69 Achievement% 54 Wizard Run 0 Options --------- ASCII 0 Keyboard 0 Movement Numpad Keybinds 0 Fullscreen 2 Font 18/TerminusBold Map View 76x50 Tactical HUD 1 Map Filters NONE Filters NONE Steam 1 RUN: 5e44c3be-8694-426d-8faa-55a02022ced5